Cogmind - Beta 13 @@@ ROGUE MODE // 2024.04.09 @ 02:40:35 Player: Zaros426 Result: Destroyed by G-34 Mercenary with Small Laser Performance ------------- Evolutions (0) 0 Regions Visited (1) 200 Robots Destroyed (10) 50 Value Destroyed (140) 140 Prototype IDs (0) 0 Alien Tech Used (0) 0 Bonus (0) 0 TOTAL SCORE: 390 Bonus ------- None Cogmind --------- Core Integrity 0/250 Matter 300/300 Energy 100/100 System Corruption 0% Temperature Cool (6) Movement Core (100) Ox1 Location -10/Materials Parts ------- > --- POWER (1) -------- (None) > --- PROPULSION (2) --- (None) > --- UTILITY (2) ------ Small Storage Unit Improved Terrain Scanner > --- WEAPON (2) ------- (None) > --- INVENTORY (8) ---- Ion Engine Wheel Wheel Improved Terrain Scanner Peak State ------------ > --- POWER ------------ Ion Engine > --- PROPULSION ------- Compact Wheel Compact Wheel > --- UTILITY ---------- Small Storage Unit Improved Terrain Scanner > --- WEAPON ----------- Assault Rifle Light Assault Rifle > --- INVENTORY -------- Ion Engine Wheel Wheel Improved Terrain Scanner [Rating: 9] Favorites ----------- Power Ion Engine Engine Ion Engine Propulsion Compact Wheel Wheel Compact Wheel Utility Small Storage Unit Device Improved Terrain Scanner Storage Small Storage Unit Weapon Assault Rifle Ballistic Gun Assault Rifle Build | -11 -10 ------- Run | Yrd Mat Slots Evolved . | . . Power . | . . Propulsion . | . . Utility . | . . Weapon . | . . Parts Attached 7 | 7 . Power 1 | 1 . Engine 1 | 1 . Core . | . . Reactor . | . . Propulsion 2 | 2 . Treads . | . . Leg . | . . Wheel 2 | 2 . Hover . | . . Flight . | . . Utility 2 | 2 . Device 1 | 1 . Storage 1 | 1 . Processor . | . . Hackware . | . . Protection . | . . Artifact . | . . Weapon 2 | 2 . Energy Gun . | . . Energy Cannon . | . . Ballistic Gun 2 | 2 . Ballistic Cannon . | . . Launcher . | . . Special Weapon . | . . Impact Weapon . | . . Slashing Weapon . | . . Piercing Weapon . | . . Special Melee Weapon . | . . Unidentified Prototypes . | . . Parts Lost 5 | . 5 Power 1 | . 1 Propulsion 2 | . 2 Utility . | . . Weapon 2 | . 2 Highest Loss Streak 4 | . 4 To Critical Strikes . | . . Average Slot Usage (%) 84 | . 84 Engine 7 | . 7 Wheel 24 | . 24 Device 14 | . 14 Storage 14 | . 14 Ballistic Gun 23 | . 23 Naked Turns . | . . Heaviest Build 14 | 14 14 Greatest Support 32 | 32 32 Greatest Overweight (x) 3 | 3 1 Average Overweight (x) . | . . Largest Inventory Capacity 8 | 8 8 Average Capacity 7 | 7 8 Most Carried 6 | 6 4 Average Carried 3 | 3 4 Final Capacity 8 | 8 8 Final Carried 4 | 4 4 Class Distribution -------------------- 100% | Mutant Dominant Class ---------------- Mutant | -10/Materials Resources | -11 -10 ----------- Run | Yrd Mat Matter Collected 398 | 318 80 Remotely . | . . Salvage Created 340 | 157 183 Parts 20 | 10 10 Haulers Intercepted 1 | . 1 Recyclers Shooed 1 | . 1 Parts Field Recycled . | . . Retrieved Matter . | . . Parts Self-Destructed . | . . Prevented . | . . Kills | -11 -10 ------- Run | Yrd Mat Combat Hostiles Destroyed 5 | . 5 Guns 5 | . 5 Classes Destroyed 5 | 2 3 Tunneler 3 | 3 . Hauler 1 | . 1 Recycler 1 | 1 . Swarmer 3 | . 3 Grunt 2 | . 2 Best Kill Streak 4 | 4 3 Combat Bots Only 3 | . 3 Max Kills in Single Turn 1 | 1 1 Gunslinging . | . . Exploded . | . . Melee . | . . Uniques/NPCs Destroyed . | . . Combat | -11 -10 -------- Run | Yrd Mat Hostile Shots Fired 70 | . 70 Missed 8 | . 8 Damage Taken 655 | . 655 Core 250 | . 250 Absorbed by Shields . | . . Core Remaining (%) 100 | 100 . Volleys Fired 43 | 14 29 Largest 2 | 2 2 Hottest 40 | 40 40 Shots Fired 84 | 28 56 Gun 84 | 28 56 Cannon . | . . Launcher . | . . Special . | . . Kinetic 84 | 28 56 Thermal . | . . Explosive . | . . Electromagnetic . | . . Robot Hit Streak 11 | 11 5 Robot Miss Streak 3 | 2 3 Penetration Max . | . . Secondary Targets 2 | . 2 Max Gunslinging Chain 1 | . 1 Shots Hit Robots 49 | 20 29 Core Hits 19 | 6 13 Critical Kills . | . . Critical Parts Destroyed . | . . Critical Strikes . | . . Melee Attacks . | . . Impact . | . . Slashing . | . . Piercing . | . . Sneak Attacks . | . . Combat Hostiles . | . . Follow-up Attacks . | . . Damage Inflicted 517 | 201 316 Guns 485 | 201 284 Cannons . | . . Explosions . | . . Melee . | . . Ramming 32 | . 32 Kinetic 485 | 201 284 Thermal . | . . Explosive . | . . Electromagnetic . | . . Impact . | . . Slashing . | . . Piercing . | . . Highest Corruption . | . . Average Corruption . | . . Corruption Purged . | . . Corruption Blocked . | . . Overload Shots . | . . Overflow Damage . | . . Projectiles . | . . Explosions . | . . Melee . | . . Knockbacks . | . . Impact . | . . Kinetic . | . . Secondary . | . . Self-Inflicted Damage 14 | . 14 Shots . | . . Rammed 12 | . 12 Targets Rammed 12 | . 12 Kicked . | . . Crushed . | . . Highest Temperature 5 | . 5 Average Temperature 2 | . 2 Received Heat Transfer 207 | . 207 Siege Activations . | . . Robots Corrupted . | . . Combat Hostiles . | . . Parts Fried . | . . Impact Corruptions . | . . Robots Melted . | . . Combat Hostiles . | . . Parts Melted . | . . Heat Transferred . | . . Parts Sabotaged . | . . Parts Stolen . | . . Parts Stripped . | . . Power Chain Reactions . | . . Alert | -11 -10 ------- Run | Yrd Mat Peak Influence 124 | 20 124 Initial 13 | . 13 Average 52 | 7 75 Maximum Alert Level . | . . Low Security (%) 100 | 100 100 Level 1 . | . . Level 2 . | . . Level 3 . | . . Level 4 . | . . Level 5 . | . . High Security . | . . Max Security . | . . Squads Dispatched 1 | . 1 Investigation . | . . Extermination . | . . Reinforcement 1 | . 1 Assault . | . . Garrison . | . . Intercept . | . . Searches Triggered . | . . Construction Impeded . | . . Haulers Reinforced . | . . Active Scanning Responses . | . . Cargo Convoy Interrupts . | . . Stealth | -11 -10 --------- Run | Yrd Mat Distress Signals . | . . Communications Jammed . | . . Distress Signals . | . . Times Spotted 7 | . 7 Peak Tracking Total 3 | . 3 Tactical Retreats . | . . Traps | -11 -10 ------- Run | Yrd Mat Traps Triggered . | . . Indirectly . | . . Trap Hack Attempts . | . . Triggered . | . . Disarmed . | . . Reprogrammed . | . . Reused . | . . Traps Extracted . | . . Installed . | . . Triggered . | . . Machines | -11 -10 ---------- Run | Yrd Mat Machines Disabled . | . . Max in Single Turn . | . . Machines Repaired . | . . Machines Dismantled . | . . Machines Sabotaged . | . . Overloaded Fab Kills . | . . Hacking | -11 -10 --------- Run | Yrd Mat Machines Accessed 1 | . 1 Terminals 1 | . 1 Fabricators . | . . Repair Stations . | . . Recycling Units . | . . Scanalyzers . | . . Garrison Access . | . . Total Hacks 2 | . 2 Successful . | . . Failed 2 | . 2 Catastrophic 1 | . 1 Database Lockouts . | . . Manual . | . . Terminals 2 | . 2 Fabricators . | . . Repair Stations . | . . Recycling Units . | . . Scanalyzers . | . . Garrison Access . | . . Terminal Hacks . | . . Fabricator Hacks . | . . Repair Station Hacks . | . . Recycling Unit Hacks . | . . Scanalyzer . | . . Garrison Access Hacks . | . . Unauthorized Hacks . | . . Terminals . | . . Fabricators . | . . Repair Stations . | . . Recycling Units . | . . Scanalyzers . | . . Garrison Access . | . . Data Cores Recovered . | . . Used . | . . Hacking Detections 1 | . 1 Full Trace Events . | . . Feedback Events . | . . Feedback Blocked . | . . Robot Schematics Acquired . | . . Robots Built . | . . Authchips . | . . Time . | . . Total Robot Build Rating . | . . Part Schematics Acquired . | . . Parts Built . | . . Authchips . | . . Time . | . . Total Part Build Rating . | . . Parts Repaired . | . . Time . | . . Parts Recycled . | . . Recycled Matter . | . . Retrieved Matter . | . . Retrieved Components . | . . Parts Scanalyzed . | . . Part Schematics Acquired . | . . Parts Damaged . | . . Bothacking | -11 -10 ------------ Run | Yrd Mat Used RIF Installer . | . . Robots Hacked . | . . Non-combat . | . . Combat . | . . Robot Hacks Applied . | . . Relay Couplers Released . | . . Fabnet Peak Effective % . | . . Robots Rewired . | . . Allies Hacked . | . . Hacks Repelled . | . . Allies | -11 -10 -------- Run | Yrd Mat Total Allies . | . . Largest Group . | . . Highest-Rated Group . | . . Highest-Rated Ally . | . . Total Orders . | . . Ally Attacks . | . . Total Damage . | . . Kills . | . . Allies Corrupted . | . . Allies Melted . | . . Intel | -11 -10 ------- Run | Yrd Mat Robot Analysis Total . | . . Derelict Logs Recovered . | . . Drone Launches . | . . Drone Recoveries . | . . Exploration | -11 -10 ------------- Run | Yrd Mat Turns Passed 314 | 108 206 Spaces Moved 135 | 53 82 Core 14 | 13 1 Treads . | . . Legs . | . . Wheels 121 | 40 81 Hover . | . . Flight . | . . Fastest Speed 50 | 50 100 Average Speed 98 | 95 100 Slowest Speed 200 | 200 100 Overloaded Moves . | . . Propulsion Burnouts . | . . Robots Hopped . | . . Cave-ins Triggered . | . . Exploration Rate (%) 11 | 4 19 Regions Visited 1 Branch Regions . Pre-discovered Areas . | . . Known Exits Taken . | . . Unknown Exits Taken 1 | 1 . Scrap Searched . | . . Spaces Dug . | . . Terrain Destroyed . | . . Melee . | . . Projectile . | . . AOE . | . . Terrain Rammed . | . . Walls Destroyed . | . . Machines Disabled . | . . Actions | -11 -10 --------- Run | Yrd Mat Total 240 | 84 156 Wait 33 | . 33 Move 134 | 52 82 Hop . | . . Pick Up 10 | 10 . Fast Attach 2 | 2 . Attach 5 | 5 . Detach . | . . Swap . | . . Drop 1 | 1 . Fire 43 | 14 29 Melee . | . . Ram 12 | . 12 Kick . | . . Crush . | . . Escape Stasis . | . . Rewire . | . . Trap . | . . Miscellaneous . | . . Route ------- -11/Scrapyard -10/Materials (discovered 1 exit: [Sub]) History --------- Turn | Location | Event 20 | -11/Scrapyard | Discovered new exit (range 15) 109 | -11/Scrapyard | Entered Materials 149 | -10/Materials | Discovered new exit (range 9) 273 | -10/Materials | Core integrity fell below 50% 312 | -10/Materials | Core integrity fell below 20% 313 | -10/Materials | Build established: Mutant 315 | -10/Materials | Destroyed by G-34 Mercenary with Small Laser Last Messages --------------- 00255_ K-01 Serf collects debris. 00276_ Lgt. Assault Rifle destroyed. 00276_ A-02 Transporter destroyed. 00276_ R-06 Scavenger collects ECM Suite. 00278_ Com. Wheel destroyed. 00279_ R-06 Scavenger collects Lgt. Treads. 00280_ Assault Rifle destroyed. 00283_ R-06 Scavenger collects ECM Suite. 00288_ O-16 Technician: "IFF HANDSHAKE FAILED. SECURING TERMINAL." 00291_ Slammed into R-06 Scavenger. 00293_ ALERT: Hostiles spotted, dispatching reinforcements to Terminal M007. 00303_ Com. Wheel destroyed. 00304_ Slammed into G-34 Mercenary. 00307_ Imp. Terrain Scanner broken. 00307_ Destabilizing: Short circuit. 00308_ Acquired 32 matter. 00309_ Slammed into G-34 Mercenary. 00312_ Destabilizing: Core damaged (-2). 00313_ Slammed into G-34 Mercenary. 00315_ Destabilizing: Core damaged (-12). Map ----- +----------------------------------------------------+ | | | | | | | | | | | | | | | | | | | ??????????????????#???????????????? | | ??????????????????????????????#???? | | ??????????????????#???????????????? | | ??????????????#???????????????????? | | ??????????#????????############???? | | ?##########????#?#?# #???? | | ?# ########?# #???? | | ## """ # # #???? | | ## """ # ? # #???? | | # "" """ # # ##########???? | | # "" # # #?????#??????? | | # "T """ # # #????????????? | | + "" """ # # #?????##?????? | | # "" """ # ?# #?##########?? | | # # ??# #?# #?? | | ########## ????# #?# g #?? | | ##########+####### ### @ #?? | | ! #% #?? | | % = %%+% #?? | | % !% %# #?? | | ### ####### ###### # #?? | | ### ????# #????# # #?? | | ??# #???# #????# # #?? | | ??## ###???# #????# ##########?? | | ?#?####??#??# #????# #?????#????? | | ???????#????# #????# ?????#????? | | ???????